Cogmind - Beta 9.3 @@@ ROGUE MODE // 2020.02.09 @ 14:11:33 Player: Dhoby_Ghaut Result: Destroyed by G-34 Mercenary with Small Laser Performance ------------- Evolutions (0) 0 Regions Visited (1) 200 Robots Destroyed (13) 65 Value Destroyed (444) 444 Prototype IDs (0) 0 Alien Tech Used (0) 0 Bonus (0) 0 TOTAL SCORE: 709 Bonus ------- None Cogmind --------- Core Integrity 0/250 Matter 270/300 Energy 121/125 System Corruption 0% Temperature Cool (8) Movement Treading (180) Ox1 Location -10/Materials Parts ------- > --- POWER (1) -------- Light Ion Engine > --- PROPULSION (2) --- Light Treads Light Treads > --- UTILITY (2) ------ Large Storage Unit Large Storage Unit > --- WEAPON (2) ------- Particle Gun Particle Gun > --- INVENTORY (16) --- Light Nuclear Core Aluminum Leg Aluminum Leg Aluminum Leg Wheel Flight Unit Improved Heat Sink Sensor Array Particle Cannon Particle Cannon Particle Cannon Particle Cannon Peak State ------------ > --- POWER ------------ Ion Engine > --- PROPULSION ------- Light Treads Light Treads > --- UTILITY ---------- Large Storage Unit Large Storage Unit > --- WEAPON ----------- Particle Gun Particle Gun > --- INVENTORY -------- Light Ion Engine Light Nuclear Core Aluminum Leg Aluminum Leg Aluminum Leg Wheel Flight Unit Sensor Array Particle Gun Particle Cannon Particle Cannon Particle Cannon Particle Cannon [Rating: 11] Favorites ----------- Power Ion Engine Engine Ion Engine Power Core Light Nuclear Core Propulsion Light Treads Treads Light Treads Wheel Wheel Utility Large Storage Unit Storage Large Storage Unit Weapon Particle Gun Energy Gun Particle Gun Ballistic Gun Light Assault Rifle Build | -11 -10 ------- Run | Scr Mat Slots Evolved . | . . Power . | . . Propulsion . | . . Utility . | . . Weapon . | . . Parts Attached 21 | 6 15 Power 4 | 1 3 Engine 3 | 1 2 Core 1 | . 1 Reactor . | . . Propulsion 6 | 2 4 Treads 2 | . 2 Leg . | . . Wheel 4 | 2 2 Hover . | . . Flight . | . . Utility 4 | 1 3 Device . | . . Storage 4 | 1 3 Processor . | . . Hackware . | . . Protection . | . . Artifact . | . . Weapon 7 | 2 5 Energy Gun 6 | 1 5 Energy Cannon . | . . Ballistic Gun 1 | 1 . Ballistic Cannon . | . . Launcher . | . . Special Weapon . | . . Impact Weapon . | . . Slashing Weapon . | . . Piercing Weapon . | . . Special Melee Weapon . | . . Unidentified Prototypes . | . . Parts Lost 9 | . 9 Power 2 | . 2 Propulsion 2 | . 2 Utility . | . . Weapon 5 | . 5 Highest Loss Streak 5 | . 5 Average Slot Usage (%) 95 | . 95 Engine 11 | . 11 Core 1 | . 1 Treads 10 | . 10 Wheel 16 | . 16 Storage 26 | . 26 Energy Gun 18 | . 18 Ballistic Gun 7 | . 7 Naked Turns . | . . Heaviest Build 43 | 12 43 Greatest Support 40 | 26 40 Greatest Overweight (x) 3 | . 3 Average Overweight (x) . | . . Largest Inventory Capacity 16 | 6 16 Average Capacity 13 | 5 14 Most Carried 15 | 6 15 Average Carried 9 | 3 10 Final Capacity 16 | 6 16 Final Carried 12 | 6 12 Class Distribution -------------------- 100% | Mutant Dominant Class ---------------- Mutant | -10/Materials Resources | -11 -10 ----------- Run | Scr Mat Matter Collected 397 | 218 179 Remotely . | . . Salvage Created 552 | . 552 Parts 30 | . 30 Haulers Intercepted 1 | . 1 Recyclers Shooed . | . . Parts Field Recycled . | . . Retrieved Matter . | . . Parts Self-Destructed . | . . Prevented . | . . Kills | -11 -10 ------- Run | Scr Mat Combat Hostiles Destroyed 11 | . 11 Guns 11 | . 11 Classes Destroyed 3 | . 3 Hauler 1 | . 1 Watcher 1 | . 1 Grunt 11 | . 11 Best Kill Streak 2 | . 2 Combat Bots Only 2 | . 2 Max Kills in Single Turn 1 | . 1 Gunslinging . | . . Exploded . | . . Melee . | . . Uniques/NPCs Destroyed . | . . Combat | -11 -10 -------- Run | Scr Mat Damage Taken 1058 | . 1058 Core 259 | . 259 Absorbed by Shields . | . . Core Remaining (%) 100 | 100 . Volleys Fired 53 | . 53 Largest 2 | . 2 Hottest 130 | . 130 Shots Fired 95 | . 95 Gun 95 | . 95 Cannon . | . . Launcher . | . . Special . | . . Kinetic 33 | . 33 Thermal 52 | . 52 Explosive . | . . Electromagnetic 10 | . 10 Robot Hit Streak 13 | . 13 Robot Miss Streak 3 | . 3 Penetration Max . | . . Secondary Targets 1 | . 1 Max Gunslinging Chain 1 | . 1 Shots Hit Robots 70 | . 70 Core Hits 27 | . 27 Critical Hits . | . . Critical Kills . | . . Critical Parts Destroyed . | . . Melee Attacks . | . . Impact . | . . Slashing . | . . Piercing . | . . Sneak Attacks . | . . Combat Hostiles . | . . Follow-up Attacks . | . . Damage Inflicted 851 | . 851 Guns 851 | . 851 Cannons . | . . Explosions . | . . Melee . | . . Ramming . | . . Kinetic 180 | . 180 Thermal 554 | . 554 Explosive . | . . Electromagnetic 117 | . 117 Impact . | . . Slashing . | . . Piercing . | . . Highest Corruption . | . . Average Corruption . | . . Corruption Purged . | . . Overload Shots . | . . Overflow Damage . | . . Projectiles . | . . Explosions . | . . Melee . | . . Knockbacks . | . . Impact . | . . Kinetic . | . . Secondary . | . . Self-Inflicted Damage . | . . Shots . | . . Rammed . | . . Targets Rammed . | . . Kicked . | . . Crushed . | . . Highest Temperature 406 | . 406 Average Temperature 125 | . 125 Received Heat Transfer 603 | . 603 Effects 4 | . 4 Shutdowns 1 | . 1 Interference 3 | . 3 Siege Activations . | . . Robots Corrupted . | . . Combat Hostiles . | . . Parts Fried . | . . Impact Corruptions . | . . Robots Melted . | . . Combat Hostiles . | . . Parts Melted . | . . Heat Transferred 1443 | . 1443 Parts Sabotaged . | . . Parts Stolen . | . . Parts Stripped . | . . Power Chain Reactions . | . . Missiles Intercepted . | . . Alert | -11 -10 ------- Run | Scr Mat Peak Influence 165 | . 165 Average Influence 53 | . 57 Maximum Alert Level . | . . Low Security (%) 100 | 100 100 Level 1 . | . . Level 2 . | . . Level 3 . | . . Level 4 . | . . Level 5 . | . . High Security . | . . Max Security . | . . Squads Dispatched 3 | . 3 Investigation 2 | . 2 Extermination . | . . Reinforcement 1 | . 1 Assault . | . . Garrison . | . . Intercept . | . . Construction Impeded . | . . Haulers Reinforced . | . . Stealth | -11 -10 --------- Run | Scr Mat Distress Signals 2 | . 2 Communications Jammed . | . . Distress Signals . | . . Times Spotted 23 | . 23 Peak Tracking Total 8 | . 8 Tactical Retreats 1 | . 1 Traps | -11 -10 ------- Run | Scr Mat Traps Triggered 3 | . 3 Indirectly . | . . Trap Hack Attempts . | . . Triggered . | . . Disarmed . | . . Reprogrammed . | . . Reused . | . . Traps Extracted . | . . Installed . | . . Triggered . | . . Machines | -11 -10 ---------- Run | Scr Mat Machines Disabled . | . . Max in Single Turn . | . . Machines Sabotaged . | . . Garrisons Compromised . | . . Overloaded Fab Kills . | . . Fab Network Shutdowns . | . . Hacking | -11 -10 --------- Run | Scr Mat Machines Accessed 5 | . 5 Terminals 5 | . 5 Fabricators . | . . Repair Stations . | . . Recycling Units . | . . Scanalyzers . | . . Garrison Access . | . . Total Hacks 12 | . 12 Successful 4 | . 4 Failed 8 | . 8 Catastrophic 1 | . 1 Database Lockouts . | . . Manual 7 | . 7 Terminals 12 | . 12 Fabricators . | . . Repair Stations . | . . Recycling Units . | . . Scanalyzers . | . . Garrison Access . | . . Terminal Hacks 1 | . 1 Recall Investigation 1 | . 1 Fabricator Hacks . | . . Repair Station Hacks . | . . Recycling Unit Hacks . | . . Scanalyzer . | . . Garrison Access Hacks . | . . Unauthorized Hacks 6 | . 6 Terminals 3 | . 3 Botnet 2 | . 2 Disrupt 1 | . 1 Fabricators . | . . Repair Stations . | . . Recycling Units . | . . Scanalyzers . | . . Garrison Access . | . . Data Cores Recovered . | . . Used . | . . Hacking Detections 5 | . 5 Full Trace Events . | . . Feedback Events . | . . Feedback Blocked . | . . Robot Schematics Acquired . | . . Robots Built . | . . Matter . | . . Time . | . . Total Robot Build Rating . | . . Part Schematics Acquired . | . . Parts Built . | . . Matter . | . . Time . | . . Total Part Build Rating . | . . Parts Repaired . | . . Time . | . . Parts Recycled . | . . Recycled Matter . | . . Retrieved Matter . | . . Retrieved Components . | . . Parts Scanalyzed . | . . Part Schematics Acquired . | . . Parts Damaged . | . . Bothacking | -11 -10 ------------ Run | Scr Mat Used RIF Installer . | . . Robots Hacked . | . . Non-combat . | . . Combat . | . . Robot Hacks Applied . | . . Relay Couplers Released . | . . Robots Rewired . | . . Allies Hacked . | . . Hacks Repelled . | . . Allies | -11 -10 -------- Run | Scr Mat Total Allies . | . . Largest Group . | . . Highest-Rated Group . | . . Highest-Rated Ally . | . . Total Orders . | . . Ally Attacks . | . . Total Damage . | . . Kills . | . . Allies Corrupted . | . . Allies Melted . | . . Intel | -11 -10 ------- Run | Scr Mat Robot Analysis Total . | . . Derelict Logs Recovered . | . . Drone Launches . | . . Drone Recoveries . | . . Exploration | -11 -10 ------------- Run | Scr Mat Turns Passed 742 | 60 682 Spaces Moved 460 | 52 408 Core 4 | 4 . Treads 100 | . 100 Legs . | . . Wheels 356 | 48 308 Hover . | . . Flight . | . . Fastest Speed 50 | 50 90 Average Speed 113 | 86 116 Slowest Speed 180 | 90 180 Overloaded Moves . | . . Propulsion Burnouts . | . . Robots Hopped . | . . Cave-ins Triggered . | . . Exploration Rate (%) 39 | 4 74 Regions Visited 1 Branch Regions . Pre-discovered Areas . | . . Known Exits Taken . | . . Unknown Exits Taken 1 | 1 . Scrap Searched . | . . Spaces Dug . | . . Terrain Destroyed . | . . Melee . | . . Projectile . | . . AOE . | . . Actions | -11 -10 --------- Run | Scr Mat Total 588 | 63 525 Wait 32 | . 32 Move 459 | 51 408 Hop . | . . Pick Up 18 | 6 12 Fast Attach 11 | 6 5 Attach 8 | . 8 Detach 2 | . 2 Swap 2 | . 2 Drop 2 | . 2 Fire 53 | . 53 Melee . | . . Ram . | . . Kick . | . . Crush . | . . Escape Stasis . | . . Rewire 1 | . 1 Trap . | . . Miscellaneous . | . . Route ------- -11/Scrapyard -10/Materials (discovered 2 exits: [*Mat x2]) History --------- Turn | Location | Event 20 | -11/Scrapyard | Discovered new exit (range 15) 61 | -11/Scrapyard | Entered Materials 195 | -10/Materials | Discovered new exit (range 13) 312 | -10/Materials | Build established: Mutant 467 | -10/Materials | Core integrity fell below 50% 481 | -10/Materials | Lost 5 parts (1p2n2w) 687 | -10/Materials | Discovered new exit (range 16) 692 | -10/Materials | Core integrity fell below 20% 724 | -10/Materials | Lost 3 parts (1p2w) 743 | -10/Materials | Destroyed by G-34 Mercenary with Small Laser Last Messages --------------- 00661_ ALERT: Alarm triggered, dispatching investigation squad. 00664_ O-16 Technician uses terminal to summon reinforcements. 00664_ ALERT: Hostiles spotted, dispatching reinforcements to Terminal M006. 00664_ O-16 Technician locks terminal. 00669_ K-01 Serf collects debris. 00684_ G-34 Mercenary destroyed. 00684_ Switching to secondary target: G-34 Mercenary. 00687_ EXIT=FOUND 00687_ Particle Gun destroyed. 00693_ Ion Engine destroyed. 00703_ Destroyed Sml. Laser. 00709_ G-34 Mercenary destroyed. 00711_ Overheating: System interference. 00711_ Particle Gun temporarily disabled. 00714_ Power failure, Lgt. Ion Engine shutdown. 00714_ G-34 Mercenary destroyed. 00721_ Overheating: System interference. 00721_ Particle Gun temporarily disabled. 00726_ K-01 Serf collects debris. Map ----- +----------------------------------------------------+ | """ """ """ #### #??###### | | """ """ """ #?? # | | """ """ """ ### =[[ # | | % % / =[ # | | % ## [[ # | | ###+########"T ## ## # | | # % #??###### ## # | | / #???????# ## # | | # #???????# """ # """ # | | # """ #???????# """ # """ # | | # """ #???????# """ =/%""" # | | # """ #???????# # # | | # #???????# k # * # | | # """ #???????####T##%= ####+### | | # """ #??????????####! # % # | | # """ #?????????????# # """ !# | | # #?????????????# # """ # | | #########?????????????# # """ # | | ??????????????????????# # !# | | ??????????????????????+ # """ # | | ??????????????????????# g/ """ # | | ??????????????????????# gg# """ # | | ??????????????????????# # # | | ??????????????????????# # """ ]# | | ??????????????????????# # """ # | | ??????????????????????# @# """ # | | ??????????????????????# < # # | | ??????????????????????# ######## | | ??????????????????????#####??????? | | ?????????????????????????????????? | | ?????????????????????????????????? | | ?????????????????????????????????? | | ?????????????????????????????????? | | ?????????????????????????????????? | | | | | | | | | | | | | | | | | | | | | | | | | | | | | | | | | +----------------------------------------------------+ Best States ------------- Heat Dissipation 25 Energy Generation 14 Energy Capacity 250 Matter Stores 300 Matter Capacity 300 Sight Range 16 Terrain Scan Density 10 Evasion (%) 44 Recoil Reduction 2 Item Schematics ----------------- None Robot Schematics ------------------ None Fabricated ------------ Nothing Alien Tech Used ----------------- None Achievements -------------- None Challenges ------------ None Game ------ Seed DecoderTransportDoublenader Manual? 0 Play Time 00:10:13 Cumulative 52.6 hours Start 2020.02.09 @ 14:04:16 End 2020.02.09 @ 14:11:33 Sessions 1 Manual Loads 0 Difficulty Rogue Special Mode None Game No. 44 Rogue 44 Adventurer 0 Explorer 0 Win Type - Total 7 Types 7/0/0/0/0/0/0 Lore% 65 Gallery% 64 Achievement% 50 Wizard Run 0 Options --------- ASCII 0 Keyboard 0 Movement Vi Keybinds 0 Fullscreen 2 Font 18/SmallcapsGlow Map View 76x50 Tactical HUD 1 Map Filters NONE Filters NONE Steam 0 RUN: 08d1988b-7b75-4c85-8fe3-e0e0ae2535b3